fUST/lending_fUST_20250617
["ID","MTS","AMOUNT","RATE_DAILY","PERIOD"]
[366284368,1750174244285,-460.0,0.00024109,6]
[366284369,1750174244295,-460.0,0.00024109,6]
[366284370,1750174244304,-460.0,0.00024109,6]
[366284371,1750174244314,-442.6961704,0.00024109,6]
[366284372,1750174244324,-460.0,0.00024109,6]
[366284373,1750174244334,-460.0,0.00024109,6]
[366284374,1750174244343,-460.0,0.00024109,6]
[366284375,1750174244353,-460.0,0.00024109,6]
[366284376,1750174244363,-433.86703452,0.00024109,6]
[366284377,1750174244383,-460.0,0.00024109,6]
[366284378,1750174244405,-460.0,0.00024109,6]
[366284379,1750174244431,-443.84815153,0.00024109,6]
[366284382,1750174244454,-550.96662569,0.00024109,6]
[366284386,1750174244478,-460.0,0.00024109,6]
[366284388,1750174244498,-460.0,0.00024109,6]
[366284392,1750174244519,-658.16,0.00024109,6]
[366284395,1750174244536,-460.0,0.00024109,6]
[366284398,1750174244555,-460.0,0.00024109,6]
[366284401,1750174244577,-486.7718507,0.00024109,6]
[366284405,1750174244601,-460.0,0.00024109,6]
[366284407,1750174244616,-423.62566824,0.00024109,6]
[366284410,1750174244639,-460.0,0.00024109,6]
[366284413,1750174244657,-239.02385376,0.00024109,6]
[366284416,1750174244680,-460.0,0.00024109,6]
[366284418,1750174244698,-460.0,0.00024109,6]
[366284422,1750174244716,-661.81,0.00024109,6]
[366284427,1750174244734,-460.0,0.00024109,6]
[366284430,1750174244752,-460.0,0.00024109,6]
[366284432,1750174244770,-460.0,0.00024109,6]
[366284435,1750174244789,-488.57,0.00024109,6]
[366284438,1750174244810,-378.82708514,0.00024109,6]
[366284441,1750174244829,-460.0,0.00024109,6]
[366284444,1750174244847,-460.0,0.00024109,6]
[366284447,1750174244865,-443.32240855,0.00024109,6]
[366284449,1750174244883,-460.0,0.00024109,6]
[366284452,1750174244901,-431.48943056,0.00024109,6]
[366284455,1750174244922,-460.0,0.00024109,6]
[366284458,1750174244941,-412.30079283,0.00024109,6]
[366284460,1750174244959,-460.0,0.00024109,6]
[366284463,1750174244977,-440.0,0.00024109,6]
[366284466,1750174244995,-460.0,0.00024109,6]
[366284469,1750174245013,-460.0,0.00024109,6]
[366284471,1750174245032,-460.0,0.00024109,6]
[366284474,1750174245048,-460.0,0.00024109,6]
[366284477,1750174245067,-460.0,0.00024109,5]
[366284480,1750174245084,-460.0,0.00024109,6]
[366284483,1750174245101,-460.0,0.00024109,6]
[366284485,1750174245118,-669.32,0.00024109,6]
[366284488,1750174245135,-460.0,0.00024109,6]
[366284491,1750174245152,-460.0,0.00024109,6]
[366284493,1750174245170,-300.0,0.00024109,6]
[366284496,1750174245187,-460.0,0.00024109,6]
[366284499,1750174245204,-460.0,0.00024109,6]
[366284502,1750174245222,-460.0,0.00024109,6]
[366284504,1750174245239,-460.0,0.00024109,6]
[366284507,1750174245256,-460.0,0.00024109,6]
[366284510,1750174245274,-670.03,0.00024109,6]
[366284513,1750174245291,-460.0,0.00024109,6]
[366284528,1750174245437,-504.59721843,0.00024109,6]
[366284530,1750174245449,-460.0,0.00024109,6]
[366284532,1750174245459,-460.0,0.00024109,6]
[366284534,1750174245468,-460.0,0.00024109,6]
[366284536,1750174245478,-214.89264213,0.00024109,6]
[366284538,1750174245488,-460.0,0.00024109,6]
[366284540,1750174245497,-460.0,0.00024109,6]
[366284542,1750174245507,-602.42089824,0.00024109,6]
[366284544,1750174245516,-411.20734643,0.00024109,6]
[366284546,1750174245526,-460.0,0.00024109,6]
[366284548,1750174245535,-460.0,0.00024109,6]
[366284550,1750174245545,-460.0,0.00024109,6]
[366284552,1750174245555,-460.0,0.00024109,6]
[366284554,1750174245565,-460.0,0.00024109,6]
[366284556,1750174245576,-460.0,0.00024109,6]
[366284558,1750174245585,-460.0,0.00024109,6]
[366284560,1750174245595,-460.0,0.00024109,6]
[366284562,1750174245605,-460.0,0.00024109,6]
[366284564,1750174245614,-151.0,0.00024109,7]
[366284566,1750174245624,-460.0,0.00024109,6]
[366284568,1750174245634,-460.0,0.00024109,6]
[366284570,1750174245644,-460.0,0.00024109,6]
[366284572,1750174245654,-460.0,0.00024109,6]
[366284574,1750174245664,-460.0,0.00024109,6]
[366284576,1750174245676,-460.0,0.00024109,6]
[366284577,1750174245685,-460.0,0.00024109,6]
[366284579,1750174245695,-460.0,0.00024109,6]
[366284581,1750174245705,-460.0,0.00024109,6]
[366284583,1750174245714,-460.0,0.00024109,6]
[366284585,1750174245724,-527.23078103,0.00024109,6]
[366284587,1750174245733,-460.0,0.00024109,6]
[366284589,1750174245744,-441.89149295,0.00024109,6]
[366284591,1750174245754,-460.0,0.00024109,6]
[366284593,1750174245765,-460.0,0.00024109,6]
[366284595,1750174245775,-460.0,0.00024109,6]
[366284597,1750174245785,-525.36805981,0.00024109,6]
[366284599,1750174245794,-460.0,0.00024109,6]
[366284601,1750174245804,-505.29131835,0.00024109,6]
[366284603,1750174245814,-460.0,0.00024109,6]
[366284605,1750174245823,-460.0,0.00024109,6]
[366284607,1750174245834,-460.0,0.00024109,6]
[366284609,1750174245844,-623.11181275,0.00024109,6]
[366284611,1750174245854,-460.0,0.00024109,6]
[366284613,1750174245863,-460.0,0.00024109,6]
[366284615,1750174245873,-460.0,0.00024109,6]
[366284617,1750174245882,-431.05019905,0.00024109,6]
[366284618,1750174245892,-402.89091039,0.00024109,6]
[366284621,1750174245902,-460.0,0.00024109,6]
[366284623,1750174245912,-460.0,0.00024109,6]
[366284625,1750174245924,-460.0,0.00024109,6]
[366284627,1750174245938,-477.35997688,0.00024109,6]
[366284629,1750174245948,-460.0,0.00024109,6]
[366284632,1750174245957,-460.0,0.00024109,6]
[366284635,1750174245967,-439.28915816,0.00024109,6]
[366284638,1750174245978,-460.0,0.00024109,6]
[366284641,1750174245988,-460.0,0.00024109,6]
[366284644,1750174245998,-460.0,0.00024109,6]
[366284647,1750174246008,-444.03278494,0.00024109,6]
[366284651,1750174246018,-460.0,0.00024109,6]
[366284655,1750174246028,-460.0,0.00024109,6]
[366284658,1750174246038,-460.0,0.00024109,6]
[366284661,1750174246048,-460.0,0.00024109,6]
[366284664,1750174246058,-460.0,0.00024109,6]
[366284667,1750174246068,-460.0,0.00024109,6]
[366284670,1750174246078,-460.0,0.00024109,6]
[366284673,1750174246087,-460.0,0.00024109,6]
[366284676,1750174246097,-460.0,0.00024109,6]
[366284679,1750174246107,-460.0,0.00024109,6]
[366284681,1750174246116,-460.0,0.00024109,6]
[366284684,1750174246127,-583.40543953,0.00024109,6]
[366284687,1750174246136,-460.0,0.00024109,6]
[366284689,1750174246146,-460.0,0.00024109,6]
[366284692,1750174246156,-464.33495317,0.00024109,6]
[366284695,1750174246166,-460.0,0.00024109,6]
[366284697,1750174246176,-460.0,0.00024109,6]
[366284699,1750174246186,-460.0,0.00024109,6]
[366284701,1750174246196,-460.0,0.00024109,6]
[366284704,1750174246206,-460.0,0.00024109,6]
[366284707,1750174246216,-460.0,0.00024109,6]
[366284710,1750174246227,-460.0,0.00024109,6]
[366284712,1750174246236,-460.0,0.00024109,6]
[366284715,1750174246246,-460.0,0.00024109,6]
[366284718,1750174246257,-451.79206832,0.00024109,6]
[366284721,1750174246267,-460.0,0.00024109,6]
[366284724,1750174246277,-460.0,0.00024109,6]
[366284727,1750174246287,-460.0,0.00024109,6]
[366284730,1750174246297,-7412.5,0.00024109,6]
[366284733,1750174246307,-3773.16,0.00024109,6]
[366284736,1750174246317,-431.61577593,0.00024109,6]
[366284739,1750174246327,-400.61325322,0.00024109,6]
[366284741,1750174246336,-460.0,0.00024109,6]
[366284743,1750174246346,-460.0,0.00024109,6]
[366284745,1750174246356,-460.0,0.00024109,6]
[366284747,1750174246366,-460.0,0.00024109,6]
[366284749,1750174246375,-279.16276251,0.00024109,6]
[366284751,1750174246386,-460.0,0.00024109,6]
[366284753,1750174246396,-215.86299397,0.00024109,6]
[366284754,1750174246406,-430.0,0.00024109,6]
[366284757,1750174246416,-885.27777638,0.00024109,6]
[366284759,1750174246426,-460.0,0.00024109,6]
[366284760,1750174246437,-460.0,0.00024109,6]
[366284762,1750174246447,-500.0,0.00024109,6]
[366284765,1750174246457,-627.7,0.00024109,6]
[366284766,1750174246467,-460.0,0.00024109,6]
[366284768,1750174246477,-460.0,0.00024109,6]
[366284770,1750174246488,-460.0,0.00024109,6]
[366284772,1750174246498,-460.0,0.00024109,6]
[366284774,1750174246508,-517.28615987,0.00024109,6]
[366284776,1750174246518,-1811.58,0.00024109,6]
[366284778,1750174246528,-460.0,0.00024109,6]
[366284781,1750174246539,-460.0,0.00024109,6]
[366284782,1750174246549,-1990.04,0.00024109,6]
[366284784,1750174246558,-460.0,0.00024109,6]
[366284786,1750174246569,-460.0,0.00024109,6]
[366284788,1750174246579,-460.0,0.00024109,6]
[366284790,1750174246589,-510.25,0.00024109,6]
[366284792,1750174246599,-460.0,0.00024109,6]
[366284794,1750174246610,-460.0,0.00024109,6]
[366284796,1750174246621,-200.70049308,0.00024109,6]
[366284798,1750174246631,-870.21,0.00024109,6]
[366284800,1750174246641,-701.9,0.00024109,6]
[366284802,1750174246651,-460.0,0.00024109,6]
[366284804,1750174246661,-460.0,0.00024109,6]
[366284806,1750174246674,-460.0,0.00024109,6]
[366284808,1750174246684,-7264.29,0.00024109,6]
[366284817,1750174246767,-460.0,0.00024109,6]
[366284819,1750174246784,-880.46,0.00024109,6]
[366284821,1750174246795,-460.0,0.00024109,6]
[366284823,1750174246805,-500.0,0.00024109,6]
[366284825,1750174246816,-500.0,0.00024109,6]
[366284827,1750174246826,-460.0,0.00024109,6]
[366284830,1750174246837,-500.0,0.00024109,6]
[366284832,1750174246847,-500.0,0.00024109,6]
[366284833,1750174246856,-500.0,0.00024109,6]
[366284835,1750174246867,-500.0,0.00024109,6]
[366284838,1750174246877,-500.0,0.00024109,6]
[366284839,1750174246887,-500.0,0.00024109,6]
[366284841,1750174246897,-500.0,0.00024109,6]
[366284844,1750174246907,-460.0,0.00024109,6]
[366284845,1750174246919,-500.0,0.00024109,6]
[366284846,1750174246930,-500.0,0.00024109,6]
[366284847,1750174246944,-500.0,0.00024109,6]
[366284848,1750174246954,-1820.7,0.00024109,6]
[366284849,1750174246964,-500.0,0.00024109,6]
[366284850,1750174246974,-500.0,0.00024109,6]
[366284851,1750174246987,-500.0,0.00024109,6]
[366284852,1750174246997,-500.0,0.00024109,6]
[366284853,1750174247007,-500.0,0.00024109,6]
[366284854,1750174247018,-411.93621007,0.00024109,2]
[366284855,1750174247028,-500.0,0.00024109,6]
[366284856,1750174247039,-387.93777306,0.00024109,6]
[366284858,1750174247048,-598.41627172,0.00024109,6]
[366284860,1750174247058,-1236.01,0.00024109,6]
[366284862,1750174247068,-737.78,0.00024109,6]
[366284864,1750174247078,-460.0,0.00024109,6]
[366284866,1750174247088,-447.99994809,0.00024109,6]
[366284868,1750174247098,-465.19838748,0.00024109,6]
[366284870,1750174247107,-460.0,0.00024109,6]
[366284872,1750174247117,-487.98,0.00024109,6]
[366284874,1750174247127,-460.0,0.00024109,6]
[366284876,1750174247138,-1562.53,0.00024109,6]
[366284878,1750174247147,-9021.12,0.00024109,6]
[366284880,1750174247157,-460.0,0.00024109,6]
[366284882,1750174247167,-374.3411725,0.00024109,6]
[366284884,1750174247178,-191.27292411,0.00024109,6]
[366284886,1750174247188,-460.0,0.00024109,6]
[366284888,1750174247198,-430.0,0.00024109,6]
[366284890,1750174247206,-460.0,0.00024109,6]
[366284892,1750174247216,-460.0,0.00024109,6]
[366284894,1750174247226,-524.73,0.00024109,6]
[366284896,1750174247236,-460.0,0.00024109,6]
[366284898,1750174247246,-460.0,0.00024109,6]
[366284900,1750174247256,-1045.11,0.00024109,6]
[366284902,1750174247266,-460.0,0.00024109,6]
[366284904,1750174247275,-460.0,0.00024109,6]
[366284906,1750174247285,-460.0,0.00024109,6]
[366284908,1750174247295,-1368.49,0.00024109,6]
[366284910,1750174247305,-500.0,0.00024109,6]
[366284912,1750174247314,-460.0,0.00024109,6]
[366284914,1750174247324,-460.0,0.00024109,6]
[366284916,1750174247334,-460.0,0.00024109,6]
[366284919,1750174247344,-460.0,0.00024109,6]
[366284921,1750174247354,-460.0,0.00024109,6]
[366284923,1750174247364,-460.0,0.00024109,6]
[366284925,1750174247373,-460.0,0.00024109,6]
[366284927,1750174247383,-460.0,0.00024109,6]
[366284929,1750174247393,-431.56909774,0.00024109,6]
[366284931,1750174247402,-460.0,0.00024109,6]
[366284933,1750174247412,-460.0,0.00024109,6]
[366284936,1750174247423,-460.0,0.00024109,6]
[366284938,1750174247433,-1329.89,0.00024109,6]
[366284940,1750174247444,-460.0,0.00024109,6]
[366284942,1750174247453,-503.55016483,0.00024109,6]
[366284944,1750174247464,-460.0,0.00024109,6]
[366284946,1750174247475,-460.0,0.00024109,6]
[366284948,1750174247484,-700.33,0.00024109,6]
[366284950,1750174247495,-460.0,0.00024109,6]
[366284952,1750174247504,-460.0,0.00024109,6]
[366284954,1750174247514,-460.0,0.00024109,6]
[366284956,1750174247523,-460.0,0.00024109,6]
[366284958,1750174247533,-460.0,0.00024109,6]
[366284960,1750174247543,-460.0,0.00024109,6]
[366284962,1750174247553,-158.21288016,0.00024109,6]
[366284963,1750174247564,-460.0,0.00024109,6]
[366284965,1750174247574,-460.0,0.00024109,6]
[366284967,1750174247584,-494.54,0.00024109,6]
[366284969,1750174247594,-270.0,0.00024109,6]
[366284971,1750174247604,-830.52,0.00024109,6]
[366284972,1750174247614,-1913.95,0.00024109,6]
[366284974,1750174247624,-460.0,0.00024109,6]
[366284976,1750174247634,-460.0,0.00024109,6]
[366284978,1750174247644,-460.0,0.00024109,6]
[366284980,1750174247653,-460.0,0.00024109,6]
[366284982,1750174247664,-426.62652211,0.00024109,6]
[366284984,1750174247678,-1086.38,0.00024109,6]
[366284986,1750174247687,-460.0,0.00024109,6]
[366284988,1750174247697,-182.16079871,0.00024109,6]
[366284990,1750174247707,-1179.2,0.00024109,6]
[366284992,1750174247717,-4554.0,0.00024109,6]
[366284994,1750174247727,-460.0,0.00024109,6]
[366284996,1750174247737,-484.73171832,0.00024109,6]
[366284998,1750174247747,-460.0,0.00024109,6]
[366285000,1750174247757,-460.0,0.00024109,6]
[366285002,1750174247767,-512.42475701,0.00024109,6]
[366285004,1750174247777,-460.0,0.00024109,6]
[366285006,1750174247787,-460.0,0.00024109,6]
[366285008,1750174247797,-460.0,0.00024109,6]
[366285010,1750174247807,-460.0,0.00024109,6]
[366285012,1750174247817,-460.0,0.00024109,6]
[366285014,1750174247827,-1986.9,0.00024109,6]
[366285016,1750174247837,-569.62928079,0.00024109,6]
[366285018,1750174247847,-7071.28,0.00024109,6]
[366285020,1750174247858,-460.0,0.00024109,6]
[366285022,1750174247868,-460.0,0.00024109,6]
[366285024,1750174247878,-460.0,0.00024109,6]
[366285026,1750174247888,-460.0,0.00024109,6]
[366285028,1750174247898,-430.0,0.00024109,6]
[366285029,1750174247907,-460.0,0.00024109,6]
[366285031,1750174247918,-430.0,0.00024109,6]
[366285033,1750174247934,-460.0,0.00024109,6]
[366285043,1750174248038,-460.0,0.00024109,6]
[366285046,1750174248049,-1009.27,0.00024109,6]
[366285047,1750174248059,-2923.79,0.00024109,6]
[366285049,1750174248070,-151.0,0.00024109,7]
[366285051,1750174248080,-460.0,0.00024109,6]
[366285053,1750174248091,-462.19509725,0.00024109,6]
[366285055,1750174248101,-460.0,0.00024109,6]
[366285057,1750174248111,-460.0,0.00024109,6]
[366285059,1750174248120,-152.685085,0.00024109,7]
[366285061,1750174248131,-460.0,0.00024109,6]
[366285063,1750174248141,-460.0,0.00024109,6]
[366285065,1750174248151,-1743.26,0.00024109,6]
[366285067,1750174248161,-1055.94,0.00024109,6]
[366285069,1750174248176,-460.0,0.00024109,6]
[366285071,1750174248187,-1363.15,0.00024109,6]
[366285073,1750174248196,-8763.84,0.00024109,6]
[366285075,1750174248206,-290.40767549,0.00024109,6]
[366285077,1750174248215,-430.0,0.00024109,6]
[366285079,1750174248226,-460.0,0.00024109,6]
[366285080,1750174248235,-985.52,0.00024109,6]
[366285082,1750174248245,-460.0,0.00024109,6]
[366285084,1750174248255,-460.0,0.00024109,6]
[366285086,1750174248266,-460.0,0.00024109,6]
[366285088,1750174248276,-631.51,0.00024109,6]
[366285090,1750174248286,-986.69,0.00024109,6]
[366285092,1750174248297,-433.96070124,0.00024109,6]
[366285094,1750174248307,-460.0,0.00024109,6]
[366285096,1750174248318,-460.0,0.00024109,6]
[366285098,1750174248328,-460.0,0.00024109,6]
[366285100,1750174248337,-460.0,0.00024109,6]
[366285102,1750174248348,-460.0,0.00024109,6]
[366285104,1750174248357,-460.0,0.00024109,6]
[366285106,1750174248368,-1632.77,0.00024109,6]
[366285108,1750174248378,-1240.6,0.00024109,6]
[366285110,1750174248388,-460.0,0.00024109,6]
[366285112,1750174248397,-380.27794243,0.00024109,6]
[366285114,1750174248407,-460.0,0.00024109,6]
[366285116,1750174248416,-460.0,0.00024109,6]
[366285118,1750174248430,-460.0,0.00024109,6]
[366285119,1750174248440,-436.61590364,0.00024109,6]
[366285121,1750174248451,-2777.92,0.00024109,6]
[366285123,1750174248461,-9801.69,0.00024109,6]
[366285125,1750174248471,-460.0,0.00024109,6]
[366285127,1750174248481,-1074.78,0.00024109,6]
[366285129,1750174248493,-3135.97,0.00024109,6]
[366285131,1750174248503,-460.0,0.00024109,6]
[366285132,1750174248513,-3135.97,0.00024109,6]
[366285134,1750174248524,-3135.97,0.00024109,6]
[366285136,1750174248534,-3135.97,0.00024109,6]
[366285138,1750174248545,-3135.97,0.00024109,6]
[366285140,1750174248556,-3135.97,0.00024109,6]
[366285142,1750174248566,-460.0,0.00024109,6]
[366285144,1750174248577,-3135.97,0.00024109,6]
[366285146,1750174248587,-3135.97,0.00024109,6]
[366285148,1750174248598,-3135.97,0.00024109,6]
[366285150,1750174248608,-3135.97,0.00024109,6]
[366285151,1750174248619,-3135.97,0.00024109,6]
[366285153,1750174248631,-460.0,0.00024109,6]
[366285155,1750174248643,-3135.97,0.00024109,6]
[366285157,1750174248655,-3135.97,0.00024109,6]
[366285159,1750174248668,-3135.97,0.00024109,6]
[366285161,1750174248686,-3135.97,0.00024109,6]
[366285163,1750174248699,-3135.97,0.00024109,6]
[366285165,1750174248711,-3135.97,0.00024109,6]
[366285167,1750174248722,-3135.97,0.00024109,6]
[366285169,1750174248733,-3135.97,0.00024109,6]
[366285171,1750174248744,-1650.79,0.00024109,6]
[366285173,1750174248756,-3135.97,0.00024109,6]
[366285174,1750174248769,-3135.97,0.00024109,6]
[366285177,1750174248785,-3135.97,0.00024109,6]
[366285178,1750174248797,-3135.97,0.00024109,6]
[366285180,1750174248807,-3136.20397696,0.00024109,6]
[366285182,1750174248818,-1711.03,0.00024109,6]
[366285184,1750174248828,-431.10135538,0.00024109,6]
[366285186,1750174248839,-438.38266754,0.00024109,6]
[366285188,1750174248850,-460.0,0.00024109,6]
[366285190,1750174248860,-460.0,0.00024109,6]
[366285192,1750174248871,-7214.71,0.00024109,6]
[366285194,1750174248881,-4214.03,0.00024109,6]
[366285196,1750174248891,-460.0,0.00024109,6]
[366285198,1750174248902,-460.0,0.00024109,6]
[366285200,1750174248913,-440.87311069,0.00024109,6]
[366285201,1750174248931,-420.53458155,0.00024109,6]
[366285203,1750174248944,-461.87243434,0.00024109,6]
[366285205,1750174248955,-2862.09,0.00024109,6]
[366285207,1750174248966,-420.0,0.00024109,6]
[366285209,1750174248979,-460.0,0.00024109,6]
[366285211,1750174248990,-460.0,0.00024109,6]
[366285213,1750174249000,-601.08904228,0.00024109,6]
[366285215,1750174249012,-467.57673825,0.00024109,6]
[366285217,1750174249026,-4869.04,0.00024109,6]
[366285219,1750174249037,-460.0,0.00024109,6]
[366285221,1750174249047,-337.62674489,0.00024109,6]
[366285223,1750174249059,-462.02330637,0.00024109,6]
[366285225,1750174249070,-3392.84,0.00024109,6]
[366285227,1750174249081,-410.31551418,0.00024109,6]
[366285229,1750174249092,-151.0,0.00024109,7]
[366285231,1750174249102,-847.24,0.00024109,6]
[366285233,1750174249113,-460.0,0.00024109,6]
[366285234,1750174249123,-2534.15,0.00024109,6]
[366285236,1750174249134,-460.0,0.00024109,6]
[366285238,1750174249145,-460.0,0.00024109,6]
[366285240,1750174249155,-460.0,0.00024109,6]
[366285242,1750174249165,-670.65,0.00024109,6]
[366285244,1750174249180,-460.0,0.00024109,6]
[366285246,1750174249190,-460.0,0.00024109,6]
[366285257,1750174249299,-460.0,0.00024109,6]
[366285259,1750174249310,-460.0,0.00024109,6]
[366285261,1750174249321,-504.9152716,0.00024109,6]
[366285263,1750174249331,-460.0,0.00024109,6]
[366285265,1750174249342,-1973.93,0.00024109,6]
[366285267,1750174249352,-460.0,0.00024109,6]
[366285269,1750174249362,-460.0,0.00024109,6]
[366285271,1750174249372,-460.0,0.00024109,6]
[366285272,1750174249382,-460.0,0.00024109,6]
[366285274,1750174249392,-460.0,0.00024109,6]
[366285276,1750174249403,-460.0,0.00024109,6]
[366285278,1750174249413,-460.0,0.00024109,6]
[366285280,1750174249425,-460.0,0.00024109,6]
[366285282,1750174249435,-460.0,0.00024109,6]
[366285284,1750174249446,-460.0,0.00024109,6]
[366285286,1750174249456,-460.0,0.00024109,6]
[366285288,1750174249466,-460.93541062,0.00024109,6]
[366285290,1750174249476,-468.56,0.00024109,6]
[366285292,1750174249487,-447.76309123,0.00024109,6]
[366285294,1750174249497,-460.0,0.00024109,6]
[366285296,1750174249507,-460.0,0.00024109,6]
[366285298,1750174249517,-460.0,0.00024109,6]
[366285300,1750174249528,-460.0,0.00024109,6]
[366285302,1750174249538,-460.0,0.00024109,6]
[366285304,1750174249548,-921.03,0.00024109,6]
[366285306,1750174249558,-460.0,0.00024109,6]
[366285308,1750174249568,-460.0,0.00024109,6]
[366285309,1750174249579,-460.0,0.00024109,6]
[366285311,1750174249588,-460.0,0.00024109,6]
[366285313,1750174249598,-717.1,0.00024109,6]
[366285315,1750174249608,-460.0,0.00024109,6]
[366285317,1750174249618,-460.0,0.00024109,6]
[366285319,1750174249628,-1493.61,0.00024109,6]
[366285321,1750174249638,-470.59,0.00024109,6]
[366285323,1750174249648,-460.0,0.00024109,6]
[366285325,1750174249658,-460.0,0.00024109,6]
[366285327,1750174249667,-458.38151557,0.00024109,6]
[366285329,1750174249680,-460.0,0.00024109,6]
[366285331,1750174249691,-3179.23,0.00024109,6]
[366285333,1750174249701,-460.0,0.00024109,6]
[366285335,1750174249712,-460.0,0.00024109,6]
[366285337,1750174249723,-855.43,0.00024109,6]
[366285339,1750174249733,-523.59134174,0.00024109,6]
[366285341,1750174249743,-1710.65,0.00024109,6]
[366285343,1750174249752,-460.0,0.00024109,6]
[366285345,1750174249764,-2012.27,0.00024109,6]
[366285347,1750174249774,-460.0,0.00024109,6]
[366285349,1750174249783,-432.17067932,0.00024109,6]
[366285350,1750174249793,-2354.06,0.00024109,6]
[366285352,1750174249802,-460.0,0.00024109,6]
[366285356,1750174249823,-432.28156503,0.00024109,6]
[366285359,1750174249843,-10545.92,0.00024109,6]
[366285361,1750174249864,-460.0,0.00024109,6]
[366285365,1750174249886,-460.0,0.00024109,6]
[366285368,1750174249906,-460.0,0.00024109,6]
[366285370,1750174249928,-460.0,0.00024109,6]
[366285373,1750174249950,-613.88,0.00024109,6]
[366285375,1750174249966,-460.0,0.00024109,6]
[366285378,1750174249984,-460.0,0.00024109,6]
[366285381,1750174250006,-460.0,0.00024109,6]
[366285384,1750174250028,-460.0,0.00024109,6]
[366285386,1750174250042,-460.0,0.00024109,6]
[366285389,1750174250065,-3722.2,0.00024109,6]
[366285392,1750174250080,-460.0,0.00024109,6]
[366285395,1750174250099,-460.0,0.00024109,6]
[366285397,1750174250113,-9699.48,0.00024109,6]
[366285400,1750174250130,-460.0,0.00024109,6]
[366285403,1750174250146,-460.0,0.00024109,6]
[366285405,1750174250163,-500.87992906,0.00024109,6]
[366285408,1750174250182,-432.32519125,0.00024109,6]
[366285411,1750174250199,-460.0,0.00024109,6]
[366285413,1750174250216,-594.5,0.00024109,6]
[366285416,1750174250233,-460.0,0.00024109,6]
[366285419,1750174250250,-400.0,0.00024109,6]
[366285421,1750174250267,-460.0,0.00024109,6]
[366285424,1750174250287,-158.6829329,0.00024109,6]
[366285427,1750174250304,-460.0,0.00024109,6]
[366285430,1750174250320,-440.0,0.00024109,6]
[366285432,1750174250337,-460.0,0.00024109,6]
[366285435,1750174250355,-460.0,0.00024109,6]
[366285438,1750174250372,-460.0,0.00024109,6]
[366285440,1750174250389,-460.0,0.00024109,6]
[366285443,1750174250407,-460.0,0.00024109,6]
[366285446,1750174250424,-460.0,0.00024109,6]
[366285449,1750174250442,-460.0,0.00024109,6]
[366285451,1750174250459,-460.0,0.00024109,6]
[366285454,1750174250476,-460.0,0.00024109,6]
[366285457,1750174250493,-151.0,0.00024109,7]
[366285459,1750174250511,-151.0,0.00024109,7]
[366285462,1750174250529,-3000.0,0.0002411,2]
[366285465,1750174250547,-3000.0,0.0002412,2]
[366285468,1750174250565,-3000.0,0.0002413,2]
[366285470,1750174250583,-151.0,0.00024136,7]
[366285473,1750174250601,-151.0,0.00024136,7]
[366285476,1750174250619,-151.274964,0.00024136,7]
[366285479,1750174250636,-172.177474,0.00024136,7]